bitfinex-derivatives/quotes_BTCF0:USTF0_20260131
["timestamp","ask_amount","ask_price","bid_price","bid_amount"]
[1769886027106,7.1e-07,78096.0,78079.0,0.012825]
[1769886027304,0.33776,78125.0,78079.0,0.27508923]
[1769886027510,0.09232,78132.0,78102.0,0.012822]
[1769886027705,7.1e-07,78118.0,78102.0,0.28791123]
[1769886028006,0.09232,78132.0,78114.0,0.01282]
[1769886028209,0.52990056,78155.0,78113.0,0.01282]
[1769886028404,0.27814535,78155.0,78106.0,0.012821]
[1769886028610,0.27814535,78155.0,78102.0,0.27508923]
[1769886028611,0.27814535,78153.0,78102.0,0.27508923]
[1769886028808,0.27814535,78152.0,78104.0,0.27508923]
[1769886029017,0.27814535,78152.0,78120.0,0.26674543]
[1769886029323,0.27814535,78152.0,78116.0,0.012819]
[1769886029511,0.27814535,78152.0,78117.0,0.09232]
[1769886030109,0.25175521,78175.0,78131.0,0.28790623]
[1769886030316,0.13328708,78174.0,78139.0,0.27508923]
[1769886030511,0.13328708,78173.0,78151.0,0.27508923]
[1769886030708,0.29523336,78190.0,78151.0,0.27508923]
[1769886030908,0.12798525,78173.0,78151.0,0.27508923]
[1769886031115,0.01708801,78190.0,78151.0,0.27508923]
[1769886031317,0.1316048,78189.0,78153.0,0.012813]
[1769886031611,0.27814535,78187.0,78150.0,0.26674543]
[1769886031813,0.1316048,78186.0,78146.0,0.28790423]
[1769886032015,0.1316048,78185.0,78151.0,0.012814]
[1769886032314,0.1316048,78184.0,78151.0,0.012814]
[1769886032514,0.1316048,78183.0,78151.0,0.012814]
[1769886032707,0.27814535,78181.0,78150.0,0.26674543]
[1769886032912,0.25175521,78204.0,78157.0,0.28790223]
[1769886033220,0.1279304,78180.0,78164.0,0.012812]
[1769886033515,0.32814535,78200.0,78164.0,0.012812]
[1769886033516,0.05,78200.0,78170.0,0.26674543]
[1769886033919,0.12792304,78199.0,78170.0,0.26674543]
[1769886034215,0.12792304,78199.0,78150.0,0.26674543]
[1769886034607,0.12792304,78199.0,78135.0,0.27508923]
[1769886034812,0.012808,78185.0,78130.0,0.26674543]
[1769886035112,0.012808,78185.0,78127.0,0.09232]
[1769886035113,0.012812,78162.0,78127.0,0.09232]
[1769886035317,0.42996,78161.0,78127.0,0.09232]
[1769886035711,0.012812,78160.0,78109.0,0.012821]
[1769886035916,0.14078087,78160.0,78110.0,0.27508923]
[1769886036221,0.27814535,78159.0,78116.0,0.09228]
[1769886036712,0.27814535,78159.0,78122.0,0.012818]
[1769886036907,0.12796887,78158.0,78122.0,0.012818]
[1769886037111,0.24950485,78155.0,78122.0,0.012818]
[1769886037316,0.29285258,78154.0,78094.0,0.28401287]
[1769886037522,0.29285258,78127.0,78079.0,0.012826]
[1769886037822,0.29285258,78125.0,78070.0,0.26674543]
[1769886038012,0.29285258,78119.0,78071.0,0.012827]
[1769886038216,0.26285258,78114.0,78070.0,0.012827]
[1769886038510,0.00013586,78113.0,78079.0,0.28401287]
[1769886038821,0.12813749,78113.0,78085.0,0.012825]
[1769886039120,8.586e-05,78113.0,78085.0,0.012825]
[1769886039315,0.12804753,78112.0,78085.0,0.29683787]
[1769886039515,0.24950485,78151.0,78091.0,0.28401287]
[1769886039721,0.37219193,78164.0,78100.0,0.012822]
[1769886039722,0.012815,78146.0,78100.0,0.012822]
[1769886039911,0.12804753,78134.0,78107.0,0.012821]
[1769886040113,0.33764,78149.0,78113.0,0.01282]
[1769886040317,0.29285258,78159.0,78113.0,0.01282]
[1769886040509,0.29285258,78159.0,78112.0,0.09228]
[1769886040510,0.12801146,78144.0,78112.0,0.09228]
[1769886040718,0.29285258,78143.0,78100.0,0.28401287]
[1769886040914,0.29285258,78143.0,78097.0,0.09232]
[1769886041118,0.28752234,78129.0,78097.0,0.09232]
[1769886041621,0.22352234,78129.0,78097.0,0.09232]
[1769886041816,0.12799508,78128.0,78097.0,0.09232]
[1769886042520,0.12799508,78128.0,78098.0,0.28896136]
[1769886042726,0.12799508,78128.0,78097.0,0.09232]
[1769886043022,0.012815,78146.0,78097.0,0.09232]
[1769886043226,0.12801966,78149.0,78104.0,0.28896036]
[1769886043418,0.48919325,78150.0,78104.0,0.28896036]
[1769886043619,0.48919325,78150.0,78110.0,0.01282]
[1769886043620,0.12801966,78148.0,78110.0,0.01282]
[1769886044018,0.09228,78158.0,78102.0,0.33768]
[1769886044019,0.09228,78158.0,78129.0,0.012817]
[1769886044225,0.12799672,78149.0,78129.0,0.105137]
[1769886044424,0.28752234,78168.0,78135.0,0.012816]
[1769886044723,0.12799672,78157.0,78135.0,0.012816]
[1769886044923,0.12799672,78157.0,78141.0,0.012815]
[1769886045226,0.09232,78176.0,78141.0,0.012815]
[1769886045428,0.13510077,78175.0,78141.0,0.012815]
[1769886045620,0.13510077,78174.0,78134.0,0.012816]
[1769886045821,0.13510077,78173.0,78134.0,0.012816]
[1769886046024,0.12795659,78174.0,78140.0,0.012815]
[1769886046025,0.13510077,78172.0,78140.0,0.012815]
[1769886046222,0.13510077,78171.0,78145.0,0.012814]
[1769886046424,0.13510077,78170.0,78139.0,0.28895436]
[1769886046631,0.13510077,78169.0,78139.0,0.27613936]
[1769886046931,0.13510077,78168.0,78130.0,0.27613936]
[1769886047227,0.13510077,78167.0,78132.0,0.012816]
[1769886047428,0.13510077,78167.0,78129.0,0.09232]
[1769886047429,0.13510077,78166.0,78138.0,0.28895436]
[1769886047727,0.13510077,78165.0,78138.0,0.28895436]
[1769886048029,0.28752234,78195.0,78148.0,0.28895236]
[1769886048229,0.28752234,78193.0,78149.0,0.09228]
[1769886048431,0.12795577,78175.0,78149.0,0.09228]
[1769886048724,0.28752234,78207.0,78166.0,0.01281]
[1769886048928,0.24950485,78214.0,78166.0,0.28894936]
[1769886049131,0.1279394,78190.0,78166.0,0.28894936]
[1769886049329,0.01747859,78206.0,78166.0,0.28894936]
[1769886049530,0.1279394,78189.0,78166.0,0.28894936]
[1769886049731,0.1279394,78189.0,78171.0,0.012809]
[1769886049925,0.01747859,78206.0,78176.0,0.012808]
[1769886050233,0.12791404,78199.0,78175.0,0.012809]
[1769886050835,0.41543638,78199.0,78163.0,0.01281]
[1769886051134,0.41543638,78199.0,78174.0,0.012809]
[1769886051435,0.12791404,78199.0,78179.0,0.012808]
[1769886051834,0.12791404,78199.0,78185.0,0.012807]
[1769886052040,4e-08,78199.0,78189.0,0.012806]
[1769886052228,0.28752234,78226.0,78198.0,0.012805]
[1769886052432,0.28752234,78226.0,78203.0,0.012804]
[1769886052634,2.2e-07,78211.0,78203.0,0.012804]
[1769886052934,0.28752234,78226.0,78201.0,0.012804]
[1769886053141,5.3e-07,78225.0,78203.0,0.27613936]
[1769886053342,0.24950485,78249.0,78193.0,0.06403]
[1769886053343,3.4e-07,78255.0,78242.0,0.012798]
[1769886053531,3.4e-07,78255.0,78207.0,0.064019]
[1769886053735,5.3e-07,78237.0,78228.0,0.0128]
[1769886054041,0.42984,78254.0,78198.0,0.61369936]
[1769886054042,0.42984,78254.0,78217.0,0.012802]
[1769886054233,0.12782656,78253.0,78229.0,0.0128]
[1769886054433,5.6e-07,78253.0,78242.0,0.012798]
[1769886054640,5.6e-07,78253.0,78222.0,0.064006]
[1769886054641,5.6e-07,78253.0,78248.0,0.012797]
[1769886054840,0.09224,78269.0,78248.0,0.012797]
[1769886055036,0.31462468,78293.0,78261.0,0.012795]
[1769886055237,0.09224,78290.0,78267.0,0.012793]
[1769886055539,0.37976234,78290.0,78269.0,0.012793]
[1769886055735,0.37976234,78290.0,78275.0,0.012792]
[1769886055935,0.09224061,78289.0,78275.0,0.012792]
[1769886056138,6.1e-07,78289.0,78268.0,0.012793]
[1769886056335,0.12774797,78289.0,78242.0,0.06399]
[1769886056541,6.1e-07,78289.0,78242.0,0.06399]
[1769886056835,0.12774736,78288.0,78254.0,0.012796]
[1769886057035,0.12774736,78288.0,78260.0,0.012795]
[1769886057242,0.12774736,78288.0,78245.0,0.063988]
[1769886057431,3.6e-07,78288.0,78257.0,0.063978]
[1769886057642,9.7e-07,78292.0,78277.0,0.012792]
[1769886057942,2.1e-07,78287.0,78256.0,0.063979]
[1769886058241,0.10561906,78291.0,78246.0,0.012797]
[1769886058446,0.12775879,78286.0,78275.0,0.012792]
[1769886058642,0.10561906,78291.0,78247.0,0.27613936]
[1769886058843,0.10561906,78284.0,78258.0,0.012795]
[1769886059144,0.10561906,78284.0,78239.0,0.156233]
[1769886059343,0.10561906,78284.0,78239.0,0.09224]
[1769886059545,6e-07,78270.0,78239.0,0.09224]
[1769886059741,0.08003106,78282.0,78260.0,0.012795]
[1769886060135,0.06043278,78280.0,78260.0,0.012795]
[1769886060335,0.06043278,78280.0,78244.0,0.012797]
[1769886060541,0.05202618,78279.0,78241.0,0.06399]
[1769886060742,0.03923018,78277.0,78247.0,0.012797]
[1769886061042,0.02643218,78262.0,78194.0,0.29118927]
[1769886061244,0.02643218,78253.0,78213.0,0.012802]
[1769886061448,0.02643218,78253.0,78179.0,0.064042]
[1769886061449,0.02634266,78236.0,78192.0,0.012806]
[1769886061741,0.13243755,78235.0,78200.0,0.29464831]
[1769886061945,0.01605505,78258.0,78234.0,0.012799]
[1769886062140,0.12785434,78234.0,78222.0,0.29999999]
[1769886062348,0.01279,78288.0,78248.0,0.012797]
[1769886062534,3.4e-07,78257.0,78224.0,0.29999988]
[1769886062739,8.952e-05,78256.0,78246.0,0.012797]
[1769886062939,0.12781104,78256.0,78216.0,0.29999988]
[1769886063146,0.00300034,78245.0,78202.0,0.012804]
[1769886063538,0.00300034,78224.0,78186.0,0.012807]
[1769886063744,0.12781104,78244.0,78198.0,0.012805]
[1769886063945,0.0922,78245.0,78221.0,0.012801]
[1769886064242,0.12786906,78243.0,78213.0,0.012802]
[1769886064548,0.012799,78232.0,78182.0,0.00011443]
[1769886064845,0.0932,78245.0,78216.0,0.012802]
[1769886064846,0.001,78245.0,78216.0,0.012802]
[1769886065038,0.06396,78280.0,78211.0,0.012803]
[1769886065039,0.0922,78246.0,78211.0,0.012803]
[1769886065239,0.12786579,78231.0,78216.0,0.012802]
[1769886065541,0.0922,78245.0,78210.0,0.012803]
[1769886065744,0.0922,78245.0,78204.0,0.012804]
[1769886065745,0.12786579,78230.0,78204.0,0.012804]
[1769886065946,0.012798,78242.0,78200.0,0.2660386]
[1769886066248,0.12783228,78229.0,78172.0,0.0922]
[1769886066443,0.012799,78236.0,78172.0,0.0922]
[1769886066638,0.2660386,78240.0,78172.0,0.0922]
[1769886066846,0.12783228,78228.0,78170.0,0.3]
[1769886067041,0.064012,78216.0,78136.0,0.3]
[1769886067243,0.2660386,78190.0,78136.0,0.3]
[1769886067451,0.2660386,78190.0,78114.0,0.0922]
[1769886067452,0.2660386,78170.0,78123.0,0.3]
[1769886067744,0.2660386,78150.0,78125.0,0.012817]
[1769886067941,0.09231443,78149.0,78114.0,0.0922]
[1769886068144,0.01291613,78148.0,78094.0,0.012822]
[1769886068339,0.012814,78142.0,78094.0,0.012822]
[1769886068543,0.2660386,78130.0,78088.0,0.012823]
[1769886068848,0.012817,78128.0,78080.0,0.01292749]
[1769886069039,0.0922,78129.0,78100.0,0.012821]
[1769886069242,0.2660386,78110.0,78080.0,0.00010349]
[1769886069449,0.09231443,78109.0,78080.0,0.00010349]
[1769886069943,0.12802621,78108.0,78080.0,0.00010349]
[1769886070148,0.00011443,78107.0,78080.0,0.00010349]
[1769886070348,0.07502621,78108.0,78080.0,0.00010349]
[1769886070349,0.00010154,78106.0,78080.0,0.00010349]
[1769886070644,0.00010154,78106.0,78080.0,0.00110349]
[1769886070846,0.12420245,78105.0,78080.0,0.00110349]
[1769886071054,0.00011443,78104.0,78080.0,0.00110349]
[1769886071351,1.0,78100.0,78061.0,0.012827]
[1769886071552,1.0,78100.0,78054.0,0.012829]
[1769886071856,1.0,78100.0,78027.0,0.3374]
[1769886071857,1.0,78100.0,78046.0,0.01283]
[1769886072046,1.0,78100.0,78038.0,0.012831]
[1769886072047,0.012822,78092.0,78038.0,0.012831]
[1769886072352,0.012823,78087.0,78030.0,0.012832]
[1769886072548,0.09224,78086.0,78030.0,0.012832]
[1769886072752,0.012825,78078.0,78022.0,0.012834]
[1769886073052,0.012826,78070.0,78014.0,0.012835]
[1769886073252,0.064114,78093.0,78000.0,20.75]
[1769886073253,0.12810986,78077.0,78041.0,0.012831]
[1769886073448,0.012823,78092.0,78032.0,0.012832]
[1769886073648,0.012824,78086.0,78032.0,0.012832]
[1769886073848,0.22034986,78091.0,78016.0,0.012835]
[1769886073849,0.012826,78072.0,78016.0,0.012835]
[1769886074049,0.012827,78066.0,78022.0,0.001]
[1769886074254,0.012827,78063.0,78022.0,0.001]
[1769886074453,0.012828,78059.0,77999.0,0.012838]
[1769886074648,0.012829,78049.0,77999.0,0.012838]
[1769886074847,0.09228,78048.0,77999.0,0.012838]
[1769886075047,0.09228,78048.0,77993.0,0.3]
[1769886075048,0.09228,78048.0,78001.0,0.012837]
[1769886075247,0.12815665,78047.0,78001.0,0.012837]
[1769886075451,0.01283,78045.0,78001.0,0.012837]
[1769886075652,0.01283,78045.0,77993.0,0.012839]
[1769886075951,0.13848656,78044.0,77966.0,0.3]
[1769886076260,0.012835,78016.0,78000.0,9.56008197]
[1769886076551,0.42992,78015.0,78000.0,5.58092597]
[1769886076749,0.012835,78014.0,78000.0,9.7e-07]
[1769886077956,0.09228,78015.0,77952.0,0.012845]
[1769886078259,0.46591389,78014.0,77952.0,0.012845]
[1769886078445,0.33768,78014.0,77952.0,0.012845]
[1769886078650,0.12823389,78013.0,77961.0,0.012844]
[1769886079150,0.00012781,78012.0,77973.0,0.012842]
[1769886079351,0.12823389,78013.0,77980.0,0.012841]
[1769886079554,0.09236,78042.0,78002.0,0.012837]
[1769886079750,0.09236,78042.0,78006.0,0.012837]
[1769886079954,0.12816897,78041.0,78006.0,0.012837]
[1769886080254,0.12816897,78041.0,77998.0,0.012838]
[1769886080556,9.7e-07,78041.0,78022.0,0.012834]
[1769886080853,0.09236,78068.0,78022.0,1.6]
[1769886081050,0.064114,78093.0,78022.0,1.612834]
[1769886081051,3.7e-07,78040.0,78022.0,1.612834]
[1769886081253,0.09236,78063.0,78031.0,0.38447928]
[1769886081557,3.7e-07,78039.0,78030.0,0.38447928]
[1769886081857,0.02881905,78055.0,78008.0,0.09236]
[1769886082158,0.02881905,78053.0,78010.0,1.6]
[1769886082345,0.02881905,78048.0,78010.0,1.6]
[1769886082554,0.02881905,78037.0,77998.0,0.001]
[1769886082745,0.02881905,78035.0,77999.0,1.6]
[1769886082947,0.02881905,78033.0,77999.0,1.6]
[1769886083547,0.02881905,78031.0,77999.0,1.6]
[1769886083748,0.02881905,78031.0,77982.0,0.064204]
[1769886083963,0.04553609,78029.0,77981.0,0.012841]
[1769886084154,0.04553609,78023.0,77981.0,0.012841]
[1769886084352,0.09236,78033.0,77982.0,1.6]
[1769886084353,0.012834,78022.0,77982.0,1.6]
[1769886084554,0.09236,78033.0,77974.0,0.09236]
[1769886084555,0.012836,78012.0,77974.0,0.09236]
[1769886084747,0.064167,78029.0,77974.0,0.09236]
[1769886084748,0.0924,78011.0,77974.0,0.09236]
[1769886084956,0.012837,78002.0,77952.0,0.012845]
[1769886085161,0.12821663,78010.0,77949.0,0.0924]
[1769886085359,0.012837,78002.0,77962.0,0.012844]
[1769886085656,0.012834,78025.0,77980.0,0.012841]
[1769886085855,0.012835,78018.0,77973.0,0.012842]
[1769886086358,0.03536221,78016.0,77976.0,0.012842]
[1769886086559,0.03536221,78014.0,77976.0,0.012842]
[1769886086757,0.03536221,78009.0,77970.0,0.0924]
[1769886086957,0.03536221,78009.0,77971.0,1.6]
[1769886087158,0.03536221,78009.0,77972.0,0.012842]
[1769886087359,0.03536221,78023.0,77985.0,0.01284]
[1769886087563,0.12821334,78008.0,77985.0,0.01284]
[1769886087855,0.11600008,78022.0,77986.0,1.6]
[1769886088057,0.02360008,78020.0,77986.0,0.01284]
[1769886088257,0.02360008,78020.0,77992.0,0.012839]
[1769886088462,0.0924,78021.0,77999.0,0.38447928]
[1769886088650,0.105234,78022.0,77987.0,1.6]
[1769886088855,0.012835,78016.0,77969.0,0.012843]
[1769886089050,0.012835,78016.0,77972.0,0.009842]
[1769886089256,0.012837,78004.0,77964.0,0.012843]
[1769886089452,0.012837,78004.0,77951.0,0.0924]
[1769886089655,0.012837,78004.0,77920.0,0.012851]
[1769886089656,0.012842,77972.0,77942.0,0.00014004]
[1769886089856,0.012844,77961.0,77906.0,0.012853]
[1769886090062,0.012845,77958.0,77907.0,1.597]
[1769886090260,0.012845,77958.0,77907.0,1.584]
[1769886090462,0.012845,77954.0,77907.0,1.584]
[1769886090663,0.012846,77951.0,77912.0,0.11666824]
[1769886090861,9.655e-05,77950.0,77913.0,1.584]
[1769886091060,0.012846,77947.0,77913.0,1.584]
[1769886091266,0.012847,77943.0,77913.0,1.584]
[1769886091460,0.064225,77958.0,77913.0,1.584]
[1769886091461,0.00014004,77942.0,77913.0,1.584]
[1769886091663,0.12831781,77942.0,77913.0,1.584]
[1769886091863,0.012846,77949.0,77916.0,0.11366824]
[1769886092062,0.012847,77942.0,77913.0,1.584]
[1769886092362,0.012847,77942.0,77913.0,1.581]
[1769886092559,0.001,77943.0,77893.0,0.09244]
[1769886092764,0.01285,77922.0,77894.0,1.581]
[1769886093065,0.012851,77918.0,77879.0,0.3]
[1769886093255,0.09244,77925.0,77862.0,0.09244]
[1769886093256,0.12834004,77921.0,77881.0,0.012857]
[1769886093462,0.09244,77925.0,77896.0,0.012855]
[1769886093660,0.12834004,77924.0,77904.0,0.012853]
[1769886093859,0.001,77942.0,77911.0,0.012852]
[1769886094269,0.001,77942.0,77912.0,1.581]
[1769886094568,0.12834663,77941.0,77912.0,1.581]
[1769886094764,0.12834663,77941.0,77912.0,1.578]
[1769886095162,0.09244,77953.0,77912.0,1.578]
[1769886095359,0.012846,77950.0,77912.0,1.578]
[1769886095869,0.012847,77943.0,77912.0,1.578]
[1769886096170,0.13841262,77942.0,77912.0,1.578]
[1769886096367,0.13841262,77941.0,77912.0,1.578]
[1769886096579,0.01285,77926.0,77878.0,0.33832]
[1769886096771,0.012851,77918.0,77878.0,0.33832]
[1769886096966,0.012851,77918.0,77879.0,1.578]
[1769886097273,0.012854,77898.0,77851.0,0.3]
[1769886097467,0.012856,77888.0,77861.0,0.92483846]
[1769886097664,0.15139785,77887.0,77861.0,0.92483846]
[1769886097972,0.15139785,77886.0,77861.0,0.92483846]
[1769886098168,0.1283664,77887.0,77864.0,0.2965929]
[1769886098371,0.012853,77906.0,77864.0,0.2965929]
[1769886098567,0.12841256,77885.0,77865.0,1.23429136]
[1769886098867,0.012854,77900.0,77862.0,0.92483846]
[1769886099371,0.012855,77894.0,77862.0,0.92478846]
[1769886099569,0.105375,77894.0,77862.0,0.92478846]
[1769886099764,0.012856,77888.0,77862.0,0.92478846]
[1769886100073,0.12840596,77893.0,77862.0,0.92478846]
[1769886100273,0.012856,77889.0,77862.0,0.92478846]
[1769886100474,0.012856,77889.0,77862.0,0.92093737]
[1769886101176,0.12841009,77888.0,77863.0,0.01286]
[1769886101474,0.012854,77898.0,77863.0,0.01286]
[1769886101670,0.24280404,77901.0,77863.0,0.01286]
[1769886101871,0.12841009,77896.0,77864.0,0.01286]
[1769886102074,0.24280404,77904.0,77864.0,0.01286]
[1769886102272,0.24280404,77904.0,77860.0,0.09252]
[1769886102273,0.12839937,77904.0,77870.0,0.29423345]
[1769886102474,0.12839937,77904.0,77871.0,0.33847]
[1769886102677,0.012853,77907.0,77871.0,1.25940737]
[1769886103077,0.105373,77907.0,77871.0,1.25940737]
[1769886103372,0.12838783,77906.0,77880.0,0.012857]
[1769886103573,0.12538783,77906.0,77880.0,0.30709045]
[1769886103875,8.3e-07,77905.0,77886.0,0.2949739]
[1769886104076,0.24280404,77934.0,77886.0,0.2949739]
[1769886104267,0.33536404,77939.0,77902.0,0.012855]
[1769886104465,0.09256,77938.0,77899.0,0.09256]
[1769886104669,0.012851,77923.0,77899.0,0.09256]
[1769886104870,0.25565604,77918.0,77900.0,0.80709707]
[1769886105078,0.012853,77912.0,77885.0,0.6141391]
[1769886105678,0.12835158,77911.0,77885.0,0.6141391]
[1769886105870,0.012854,77909.0,77885.0,0.6141391]
[1769886106573,0.012854,77909.0,77854.0,0.064315]
[1769886106574,0.012855,77900.0,77865.0,0.30783482]
[1769886106776,0.128373,77908.0,77866.0,0.6141391]
[1769886106777,0.012857,77890.0,77866.0,0.6141391]
[1769886106967,0.31462468,77903.0,77852.0,0.29320394]
[1769886107166,0.12839854,77889.0,77852.0,0.29320394]
[1769886107370,0.012857,77892.0,77856.0,0.012862]
[1769886107868,0.31462468,77912.0,77848.0,0.33856]
[1769886107869,0.12539854,77896.0,77880.0,0.29199925]
[1769886108077,0.012851,77926.0,77881.0,0.29199925]
[1769886108271,0.38504093,77935.0,77894.0,0.30485525]
[1769886108577,0.012854,77906.0,77881.0,0.90613835]
[1769886108772,0.02400223,77935.0,77881.0,0.90613835]
[1769886108773,0.012853,77913.0,77881.0,0.90613835]
[1769886109085,0.12841256,77905.0,77883.0,0.012858]
[1769886109278,0.012852,77917.0,77883.0,0.012858]
[1769886109474,0.12838041,77916.0,77886.0,0.012857]
[1769886109680,0.12838041,77916.0,77885.0,0.30485625]
[1769886109875,0.31462468,77930.0,77895.0,0.012856]
[1769886110073,0.12838041,77927.0,77900.0,0.012855]
[1769886110270,0.14647309,77926.0,77898.0,0.30422971]
[1769886110473,0.012849,77935.0,77898.0,0.30422971]
[1769886110474,0.14647309,77925.0,77901.0,0.29137571]
[1769886110677,0.31462468,77945.0,77914.0,0.27093916]
[1769886110871,0.31462468,77953.0,77918.0,0.27093916]
[1769886111073,0.37219193,77964.0,77932.0,0.27093916]
[1769886111270,0.012845,77951.0,77919.0,0.09256]
[1769886111475,0.012846,77946.0,77920.0,0.48577022]
[1769886111775,0.012846,77946.0,77911.0,0.012852]
[1769886111776,0.012849,77931.0,77902.0,0.33864]
[1769886112179,0.001,77945.0,77909.0,0.012852]
[1769886112378,0.12831534,77930.0,77912.0,0.012852]
[1769886112576,0.001,77945.0,77917.0,0.012851]
[1769886112775,0.12831534,77944.0,77922.0,0.28378916]
[1769886112970,0.001,77945.0,77923.0,0.42023022]
[1769886113176,0.001,77945.0,77924.0,0.01285]
[1769886113479,0.12831864,77944.0,77925.0,0.01285]
[1769886113677,0.37219193,77971.0,77930.0,0.27093916]
[1769886113882,0.12831864,77943.0,77930.0,0.27093916]
[1769886114276,0.37219193,77972.0,77933.0,0.27093916]
[1769886114481,0.12828654,77963.0,77933.0,0.27093916]
[1769886114676,0.37219193,77970.0,77942.0,0.012847]
[1769886114880,0.37219193,77970.0,77944.0,0.012846]
[1769886114881,0.12828654,77969.0,77944.0,0.012846]
[1769886115080,0.1924803,77968.0,77944.0,0.012846]
[1769886115281,0.1924803,77968.0,77945.0,0.08163022]
[1769886115477,0.12827748,77967.0,77945.0,0.07778751]
[1769886115677,0.12827748,77967.0,77946.0,0.07778751]
[1769886115985,0.46475193,77974.0,77947.0,0.012846]
[1769886116181,0.09256,77974.0,77947.0,0.012846]
[1769886116380,0.25004717,77966.0,77948.0,0.07778751]
[1769886116586,0.25004717,77966.0,77944.0,0.27093916]
[1769886116880,0.49885467,77989.0,77962.0,0.27093916]
[1769886117087,6.6e-07,77965.0,77961.0,0.012844]
[1769886117287,0.1924803,77987.0,77955.0,0.012845]
[1769886117476,0.37219193,77998.0,77959.0,0.012844]
[1769886117675,0.12827913,77988.0,77959.0,0.012844]
[1769886117881,0.2053183,77997.0,77959.0,0.012844]
[1769886118089,0.33356699,77997.0,77959.0,0.012844]
[1769886118284,0.32072899,77997.0,77961.0,0.012844]
[1769886118485,0.39084132,77998.0,77961.0,0.012844]
[1769886118681,0.33356699,77996.0,77961.0,0.012844]
[1769886118888,0.37219193,78001.0,77967.0,0.012843]
[1769886119389,0.12824047,77995.0,77967.0,0.012843]
[1769886119584,0.01819976,78001.0,77967.0,0.012843]
[1769886119890,0.1924803,77992.0,77940.0,0.27093916]
[1769886120183,0.31311876,77988.0,77953.0,0.012845]
[1769886120385,0.30924247,77990.0,77972.0,0.012842]
[1769886120591,0.01819606,78001.0,77974.0,0.012842]
[1769886120784,0.06423143,77989.0,77973.0,0.09252]
[1769886120987,0.01803827,78001.0,77973.0,0.09252]
[1769886121190,0.1924803,78005.0,77973.0,0.09252]
[1769886121486,0.1924803,78005.0,77882.0,0.31568779]
[1769886121487,0.1924803,77978.0,77949.0,0.09252]
[1769886121783,0.29599317,77983.0,77931.0,0.27093916]
[1769886121990,0.29599317,77976.0,77932.0,0.012848]
[1769886122179,0.29599317,77976.0,77931.0,0.27093916]
[1769886122380,0.12827584,77975.0,77942.0,0.012847]
[1769886122579,0.13833984,77974.0,77942.0,0.012847]
[1769886122783,0.13833984,77973.0,77942.0,0.012847]
[1769886122988,0.13833984,77972.0,77936.0,0.012848]
[1769886123286,0.29599317,77970.0,77930.0,0.09252]
[1769886123481,0.13833984,77969.0,77931.0,0.27093916]
[1769886123684,0.13833984,77968.0,77931.0,0.28378816]
[1769886123879,0.13833984,77968.0,77930.0,0.09252]
[1769886123880,0.13833984,77968.0,77941.0,0.012847]
[1769886124087,0.29599317,77965.0,77931.0,0.012849]
[1769886124389,0.13833984,77964.0,77931.0,0.27093916]
[1769886124590,8.4e-07,77963.0,77950.0,0.012845]
[1769886124779,0.12828818,77964.0,77951.0,0.09252]
[1769886124983,0.1934803,77976.0,77951.0,0.09252]
[1769886125183,0.12527502,77975.0,77954.0,0.27093916]
[1769886125487,0.012839,77992.0,77954.0,0.27093916]
[1769886125782,0.012839,77990.0,77954.0,0.27093916]
[1769886125986,0.01284,77985.0,77951.0,0.09252]
[1769886126183,0.01284,77987.0,77951.0,0.09252]
[1769886126385,0.29599317,77981.0,77940.0,0.012847]
[1769886126684,0.012843,77968.0,77929.0,0.36345916]
[1769886126890,0.2493249,77967.0,77929.0,0.36345916]
[1769886127184,0.1924803,77966.0,77930.0,0.29462528]
[1769886127387,0.2493249,77991.0,77950.0,0.29462528]
[1769886127590,0.012837,78003.0,77960.0,0.30746928]
[1769886127787,0.26899543,78005.0,77960.0,0.30746928]
[1769886127788,8.3e-07,77965.0,77961.0,0.33844]
[1769886127991,0.16831913,77980.0,77961.0,0.33844]
[1769886128187,0.29390371,77993.0,77961.0,0.33844]
[1769886128383,0.09252,78001.0,77965.0,0.012843]
[1769886128588,9.7e-07,77979.0,77965.0,0.30746828]
[1769886128892,0.01934636,78006.0,77969.0,0.29462528]
[1769886129193,0.30673871,78018.0,77970.0,0.09252]
[1769886129492,0.12825116,78005.0,77971.0,0.30746728]
[1769886129686,0.16831913,78013.0,77971.0,0.29462528]
[1769886129882,0.16831913,78007.0,77971.0,0.29462528]
[1769886130087,0.29390371,78018.0,77972.0,0.30746728]
[1769886130481,0.12821827,78006.0,77981.0,0.30746528]
[1769886130688,0.29390371,78032.0,77989.0,0.30746428]
[1769886130982,0.30673571,78031.0,77990.0,0.09252]
[1769886131183,0.29390371,78025.0,77990.0,0.09252]
[1769886131388,0.16831913,78016.0,77990.0,0.09252]
[1769886131586,0.29390371,78006.0,77972.0,0.001]
[1769886131795,0.12818787,78015.0,77973.0,0.012842]
[1769886132095,0.09252,78017.0,77985.0,0.01284]
[1769886132291,0.12821499,78016.0,77988.0,0.30746428]
[1769886132596,0.01912914,78032.0,77990.0,0.29462528]
[1769886132796,0.12821499,78031.0,77996.0,0.29462528]
[1769886132992,0.12821499,78031.0,77998.0,0.29462528]
[1769886133293,0.09248,78054.0,77989.0,0.09252]
[1769886133294,9.4e-07,78040.0,78025.0,0.012833]
[1769886133595,0.24901354,78059.0,78017.0,0.29462528]
[1769886133596,0.0190495,78053.0,78017.0,0.29462528]
[1769886133790,0.24901354,78076.0,78031.0,0.29462528]
[1769886133991,0.09248,78078.0,78034.0,0.29462528]
[1769886134187,0.12811725,78075.0,78043.0,0.01283]
[1769886134391,0.12811725,78075.0,78046.0,0.30745528]
[1769886134592,0.012822,78092.0,78046.0,0.30745528]
[1769886134791,0.16831913,78086.0,78046.0,0.30745528]
[1769886134986,0.11231913,78089.0,78046.0,0.29462528]
[1769886135186,0.11231913,78084.0,78047.0,0.01283]
[1769886135394,0.12809673,78085.0,78047.0,0.30745528]
[1769886135597,0.01911133,78089.0,78047.0,0.30745528]
[1769886135898,0.01911133,78089.0,78035.0,0.09248]
[1769886135899,0.012825,78073.0,78035.0,0.09248]
[1769886136094,0.012825,78078.0,78035.0,0.38710528]
[1769886136297,0.12809345,78072.0,78038.0,0.29462528]
[1769886136489,0.30672671,78086.0,78040.0,0.30745628]
[1769886136490,0.41904584,78086.0,78040.0,0.30745628]
[1769886136695,0.13265411,78085.0,78040.0,0.30745628]